[Event "Late-Titled-Tuesday-Blitz-April-16-2024"]
[Site "Chess.com"]
[Date "2024.04.16"]
[Round "11"]
[White "Misterfox120"]
[Black "Mikhal867"]
[Result "0-1"]
[WhiteElo "2409"]
[BlackElo "2551"]
[TimeControl "180+1"]
[EndTime "16:06:04 PDT"]
[Termination "Mikhal867 won on time"]

1. d4 {[%clk 0:03:00.6]} 1... Nf6 {[%clk 0:02:59.3]} 2. Nc3 {[%clk 0:03:00.4]}
2... g6 {[%clk 0:02:55.9]} 3. e4 {[%clk 0:02:59.9]} 3... d6 {[%clk 0:02:56.2]}
4. Bf4 {[%clk 0:02:59.8]} 4... Bg7 {[%clk 0:02:56.2]} 5. Qd2 {[%clk 0:03:00.2]}
5... Nc6 {[%clk 0:02:50.3]} 6. O-O-O {[%clk 0:02:56.1]} 6... Bd7 {[%clk
0:02:37.2]} 7. Be2 {[%clk 0:02:41.9]} 7... h5 {[%clk 0:02:12.5]} 8. h3 {[%clk
0:02:25.4]} 8... h4 {[%clk 0:01:57.1]} 9. Nf3 {[%clk 0:02:03.2]} 9... a6 {[%clk
0:01:56.2]} 10. e5 {[%clk 0:01:49.1]} 10... Nh5 {[%clk 0:01:47]} 11. Bh2 {[%clk
0:01:46.6]} 11... Bh6 {[%clk 0:01:33.3]} 12. Ng5 {[%clk 0:01:32.7]} 12... f6
{[%clk 0:01:33.1]} 13. f4 {[%clk 0:01:13.8]} 13... fxg5 {[%clk 0:01:29.7]} 14.
fxg5 {[%clk 0:01:14.7]} 14... Bg7 {[%clk 0:01:26.7]} 15. e6 {[%clk 0:01:07.7]}
15... Bxe6 {[%clk 0:01:08.2]} 16. d5 {[%clk 0:01:06.3]} 16... Bf7 {[%clk
0:01:04.4]} 17. dxc6 {[%clk 0:01:01.4]} 17... bxc6 {[%clk 0:01:04.5]} 18. Rhf1
{[%clk 0:00:44.4]} 18... Ng3 {[%clk 0:01:01.8]} 19. Bxg3 {[%clk 0:00:37.6]}
19... hxg3 {[%clk 0:01:00.3]} 20. Qf4 {[%clk 0:00:30.7]} 20... O-O {[%clk
0:00:57.5]} 21. Qxg3 {[%clk 0:00:28.8]} 21... Rb8 {[%clk 0:00:41.4]} 22. h4
{[%clk 0:00:23.3]} 22... Rb4 {[%clk 0:00:39.9]} 23. h5 {[%clk 0:00:20.7]} 23...
Qb8 {[%clk 0:00:31.1]} 24. b3 {[%clk 0:00:18.9]} 24... gxh5 {[%clk 0:00:23.4]}
25. g6 {[%clk 0:00:18.7]} 25... Be6 {[%clk 0:00:22.4]} 26. Qg5 {[%clk 0:00:05]}
26... Qb6 {[%clk 0:00:14.8]} 27. Qxh5 {[%clk 0:00:03.4]} 27... Qe3+ {[%clk
0:00:12]} 28. Kb1 {[%clk 0:00:03.9]} 28... Qh6 {[%clk 0:00:11.9]} 29. Rxf8+
{[%clk 0:00:01.8]} 29... Bxf8 {[%clk 0:00:11.3]} 30. Qf3 {[%clk 0:00:02.5]}
30... Qf4 {[%clk 0:00:09]} 31. Qd3 {[%clk 0:00:02.6]} 31... Bg7 {[%clk
0:00:08.3]} 32. Rh1 {[%clk 0:00:02.8]} 32... Qd4 {[%clk 0:00:06.3]} 33. Qxd4
{[%clk 0:00:02.1]} 33... Rxd4 {[%clk 0:00:05.6]} 34. Nd1 {[%clk 0:00:01.5]}
34... Rd2 {[%clk 0:00:05.6]} 35. Bf3 {[%clk 0:00:01.6]} 35... Bf5 {[%clk
0:00:05.7]} 36. Ne3 {[%clk 0:00:02.2]} 36... Bxg6 {[%clk 0:00:05.8]} 37. Re1
{[%clk 0:00:01.5]} 37... Bh6 {[%clk 0:00:05.4]} 38. Kc1 {[%clk 0:00:02.2]} 38...
Bxe3 {[%clk 0:00:05.5]} 39. Rxe3 {[%clk 0:00:03.1]} 39... Rxc2+ {[%clk
0:00:05.9]} 40. Kd1 {[%clk 0:00:03.1]} 40... Rxa2 {[%clk 0:00:06.2]} 41. Rxe7
{[%clk 0:00:03.5]} 41... Bc2+ {[%clk 0:00:05.5]} 42. Kc1 {[%clk 0:00:03.7]}
42... Bxb3 {[%clk 0:00:05.5]} 43. Bxc6 {[%clk 0:00:04.2]} 43... Rc2+ {[%clk
0:00:05.3]} 0-1

[Event "Late-Titled-Tuesday-Blitz-April-16-2024"]
[Site "Chess.com"]
[Date "2024.04.16"]
[Round "11"]
[White "Mikhail_Golubev"]
[Black "masterofpuppets2"]
[Result "1-0"]
[WhiteElo "2592"]
[BlackElo "2493"]
[TimeControl "180+1"]
[EndTime "16:06:05 PDT"]
[Termination "Mikhail_Golubev won on time"]

1. e4 {[%clk 0:03:00.9]} 1... e5 {[%clk 0:03:00.1]} 2. Nf3 {[%clk 0:03:00.9]}
2... Nc6 {[%clk 0:03:00.5]} 3. Nc3 {[%clk 0:03:01]} 3... Nf6 {[%clk 0:03:00.2]}
4. g3 {[%clk 0:03:01.2]} 4... d5 {[%clk 0:02:54.3]} 5. exd5 {[%clk 0:03:00.9]}
5... Nxd5 {[%clk 0:02:55.2]} 6. Bg2 {[%clk 0:03:01.3]} 6... Nxc3 {[%clk
0:02:52.3]} 7. bxc3 {[%clk 0:03:01]} 7... Bd6 {[%clk 0:02:52.6]} 8. O-O {[%clk
0:03:00.2]} 8... O-O {[%clk 0:02:53.2]} 9. d3 {[%clk 0:02:56.1]} 9... h6 {[%clk
0:02:52.5]} 10. Rb1 {[%clk 0:02:51.6]} 10... Rb8 {[%clk 0:02:51.9]} 11. d4
{[%clk 0:02:45]} 11... Qf6 {[%clk 0:02:50.9]} 12. Be3 {[%clk 0:02:32.7]} 12...
Rd8 {[%clk 0:02:36.6]} 13. Nd2 {[%clk 0:02:21.8]} 13... Bf5 {[%clk 0:02:26]} 14.
d5 {[%clk 0:02:05.7]} 14... Ne7 {[%clk 0:02:18.8]} 15. Bxa7 {[%clk 0:02:04.3]}
15... Ra8 {[%clk 0:02:18.3]} 16. Be3 {[%clk 0:01:58.2]} 16... Qg6 {[%clk
0:02:09.2]} 17. Rxb7 {[%clk 0:01:52.3]} 17... Rxa2 {[%clk 0:02:07.4]} 18. Nc4
{[%clk 0:01:33.6]} 18... Bxc2 {[%clk 0:01:59.8]} 19. Qe2 {[%clk 0:01:13.8]}
19... Rda8 {[%clk 0:01:30.3]} 20. Nxd6 {[%clk 0:01:10.3]} 20... Bd3 {[%clk
0:01:25]} 21. Qf3 {[%clk 0:01:08.2]} 21... Bxf1 {[%clk 0:01:23.9]} 22. Bxf1
{[%clk 0:01:01.1]} 22... Qxd6 {[%clk 0:01:23.3]} 23. c4 {[%clk 0:00:58.1]} 23...
Ra1 {[%clk 0:01:15.6]} 24. Kg2 {[%clk 0:00:56.6]} 24... f5 {[%clk 0:00:53.3]}
25. Be2 {[%clk 0:00:35.6]} 25... g5 {[%clk 0:00:52.4]} 26. Qh5 {[%clk
0:00:30.5]} 26... f4 {[%clk 0:00:47.9]} 27. gxf4 {[%clk 0:00:12.3]} 27... gxf4
{[%clk 0:00:48.8]} 28. c5 {[%clk 0:00:06.7]} 28... Qg6+ {[%clk 0:00:25.7]} 29.
Qxg6+ {[%clk 0:00:05.7]} 29... Nxg6 {[%clk 0:00:26.6]} 30. Bd2 {[%clk
0:00:05.9]} 30... e4 {[%clk 0:00:20.3]} 31. Bc4 {[%clk 0:00:05.3]} 31... Ne5
{[%clk 0:00:16.1]} 32. Bb3 {[%clk 0:00:03.6]} 32... f3+ {[%clk 0:00:09.3]} 33.
Kh3 {[%clk 0:00:04]} 33... Rb1 {[%clk 0:00:03.8]} 34. d6+ {[%clk 0:00:03.4]}
34... Rxb3 {[%clk 0:00:04.3]} 35. Rxb3 {[%clk 0:00:03.3]} 35... cxd6 {[%clk
0:00:05.2]} 36. cxd6 {[%clk 0:00:03.8]} 36... Nd3 {[%clk 0:00:04.7]} 37. Be3
{[%clk 0:00:03.6]} 37... Rd8 {[%clk 0:00:04.2]} 38. Rb6 {[%clk 0:00:03.8]} 38...
Kf7 {[%clk 0:00:02.9]} 39. Kg4 {[%clk 0:00:04.3]} 39... Ke6 {[%clk 0:00:03.2]}
40. Kh5 {[%clk 0:00:04.5]} 40... Rxd6 {[%clk 0:00:03.1]} 41. Rxd6+ {[%clk
0:00:04.7]} 41... Kxd6 {[%clk 0:00:04]} 42. Kxh6 {[%clk 0:00:05.2]} 42... Ke5
{[%clk 0:00:04.6]} 43. Kg5 {[%clk 0:00:05.7]} 43... Ne1 {[%clk 0:00:03]} 44. h4
{[%clk 0:00:05.5]} 44... Ng2 {[%clk 0:00:03.9]} 45. h5 {[%clk 0:00:05.9]} 45...
Nxe3 {[%clk 0:00:04.1]} 46. h6 {[%clk 0:00:05.9]} 1-0

[Event "Late-Titled-Tuesday-Blitz-April-16-2024"]
[Site "Chess.com"]
[Date "2024.04.16"]
[Round "11"]
[White "SergioMoralesG"]
[Black "Fjal"]
[Result "0-1"]
[WhiteElo "2430"]
[BlackElo "2340"]
[TimeControl "180+1"]
[EndTime "16:06:08 PDT"]
[Termination "Fjal won by checkmate"]

1. d4 {[%clk 0:03:00.9]} 1... d6 {[%clk 0:02:51.2]} 2. Nf3 {[%clk 0:02:59.6]}
2... Bg4 {[%clk 0:02:50.8]} 3. e3 {[%clk 0:02:57.3]} 3... Nd7 {[%clk 0:02:49.4]}
4. c4 {[%clk 0:02:56.7]} 4... e5 {[%clk 0:02:42.3]} 5. Be2 {[%clk 0:02:56.4]}
5... e4 {[%clk 0:02:35.9]} 6. Nfd2 {[%clk 0:02:55.1]} 6... Bxe2 {[%clk
0:02:36.8]} 7. Qxe2 {[%clk 0:02:56]} 7... f5 {[%clk 0:02:37.5]} 8. O-O {[%clk
0:02:54.2]} 8... Ngf6 {[%clk 0:02:34.5]} 9. f3 {[%clk 0:02:54.4]} 9... Qe7
{[%clk 0:02:32.9]} 10. Nc3 {[%clk 0:02:52.9]} 10... exf3 {[%clk 0:02:26.9]} 11.
Qxf3 {[%clk 0:02:53.8]} 11... O-O-O {[%clk 0:02:25.7]} 12. b4 {[%clk 0:02:14.6]}
12... g6 {[%clk 0:02:22]} 13. c5 {[%clk 0:02:08.9]} 13... dxc5 {[%clk
0:02:12.8]} 14. bxc5 {[%clk 0:02:06]} 14... Bh6 {[%clk 0:02:11.5]} 15. Nc4
{[%clk 0:02:05.2]} 15... Ng4 {[%clk 0:02:07.3]} 16. c6 {[%clk 0:01:41]} 16...
bxc6 {[%clk 0:01:57.8]} 17. Qxc6 {[%clk 0:01:35.2]} 17... Nb8 {[%clk 0:01:47.4]}
18. Qf3 {[%clk 0:01:27.8]} 18... Qb4 {[%clk 0:01:29.5]} 19. Rb1 {[%clk
0:00:28.1]} 19... Qxc4 {[%clk 0:01:26.4]} 20. Bd2 {[%clk 0:00:24.7]} 20... Bxe3+
{[%clk 0:01:17.8]} 21. Bxe3 {[%clk 0:00:23.9]} 21... Qxc3 {[%clk 0:01:18.3]} 22.
Qb7+ {[%clk 0:00:20.8]} 22... Kd7 {[%clk 0:01:17.6]} 23. Bg5 {[%clk 0:00:19.6]}
23... Qxd4+ {[%clk 0:00:46.7]} 24. Kh1 {[%clk 0:00:19.6]} 24... Ke6 {[%clk
0:00:47.4]} 25. Rbe1+ {[%clk 0:00:13.2]} 25... Kf7 {[%clk 0:00:44.1]} 26. Re7+
{[%clk 0:00:11.9]} 26... Kf8 {[%clk 0:00:35.7]} 27. Re2 {[%clk 0:00:04]} 27...
Nf2+ {[%clk 0:00:32.7]} 28. Rexf2 {[%clk 0:00:03.2]} 28... Qxf2 {[%clk
0:00:32.7]} 29. Qb4+ {[%clk 0:00:03.2]} 29... c5 {[%clk 0:00:32]} 30. Qb5 {[%clk
0:00:02.5]} 30... Qd4 {[%clk 0:00:25.8]} 31. Bxd8 {[%clk 0:00:02.7]} 31... Qxd8
{[%clk 0:00:23.3]} 32. Qxc5+ {[%clk 0:00:03.3]} 32... Kg7 {[%clk 0:00:23.9]} 33.
Qc3+ {[%clk 0:00:02.9]} 33... Qf6 {[%clk 0:00:24.1]} 34. Qc7+ {[%clk 0:00:03.5]}
34... Qf7 {[%clk 0:00:22.7]} 35. Qc3+ {[%clk 0:00:04]} 35... Kh6 {[%clk
0:00:22.8]} 36. Qd2+ {[%clk 0:00:03.7]} 36... g5 {[%clk 0:00:21.8]} 37. Qd6+
{[%clk 0:00:04]} 37... Qg6 {[%clk 0:00:21.5]} 38. Qc7 {[%clk 0:00:04.4]} 38...
Re8 {[%clk 0:00:21.2]} 39. h3 {[%clk 0:00:04.9]} 39... f4 {[%clk 0:00:18.3]} 40.
Rd1 {[%clk 0:00:05.3]} 40... Nc6 {[%clk 0:00:18.2]} 41. Rd6 {[%clk 0:00:04.4]}
41... Re6 {[%clk 0:00:12.8]} 42. Rd5 {[%clk 0:00:04.8]} 42... Ne7 {[%clk
0:00:10.8]} 43. Rc5 {[%clk 0:00:03.5]} 43... Nf5 {[%clk 0:00:11.2]} 44. Kh2
{[%clk 0:00:02.3]} 44... Ng3 {[%clk 0:00:11]} 45. Qd7 {[%clk 0:00:02.5]} 45...
Re1 {[%clk 0:00:11.2]} 46. Rc6 {[%clk 0:00:02.8]} 46... Rh1# {[%clk 0:00:11.2]}
0-1

[Event "Late-Titled-Tuesday-Blitz-April-16-2024"]
[Site "Chess.com"]
[Date "2024.04.16"]
[Round "11"]
[White "MrTattaglia"]
[Black "ameetghasi100"]
[Result "0-1"]
[WhiteElo "2949"]
[BlackElo "2809"]
[TimeControl "180+1"]
[EndTime "16:06:09 PDT"]
[Termination "ameetghasi100 won on time"]

1. f4 {[%clk 0:03:00.9]} 1... g6 {[%clk 0:02:59.7]} 2. Nf3 {[%clk 0:02:58.8]}
2... Bg7 {[%clk 0:03:00.6]} 3. h4 {[%clk 0:02:53.6]} 3... Nf6 {[%clk 0:02:50.3]}
4. h5 {[%clk 0:02:53.3]} 4... Nxh5 {[%clk 0:02:50.3]} 5. Rxh5 {[%clk 0:02:52.5]}
5... gxh5 {[%clk 0:02:51.2]} 6. e3 {[%clk 0:02:50.7]} 6... d6 {[%clk 0:02:48.7]}
7. Bc4 {[%clk 0:02:45.4]} 7... Bg4 {[%clk 0:02:45.6]} 8. d4 {[%clk 0:02:39]}
8... e6 {[%clk 0:02:33.3]} 9. Nc3 {[%clk 0:02:30.5]} 9... Nd7 {[%clk 0:02:32.1]}
10. Qe2 {[%clk 0:02:23.7]} 10... c6 {[%clk 0:02:29.9]} 11. Bd2 {[%clk
0:02:20.3]} 11... a6 {[%clk 0:02:18.9]} 12. O-O-O {[%clk 0:02:18.8]} 12... d5
{[%clk 0:02:15.6]} 13. Bb3 {[%clk 0:02:12.3]} 13... f5 {[%clk 0:02:15.4]} 14.
Be1 {[%clk 0:02:06.6]} 14... b5 {[%clk 0:02:06.5]} 15. e4 {[%clk 0:01:51.1]}
15... fxe4 {[%clk 0:01:33.1]} 16. Nxe4 {[%clk 0:01:52]} 16... dxe4 {[%clk
0:01:33.4]} 17. Qxe4 {[%clk 0:01:51.1]} 17... Bf5 {[%clk 0:01:04.1]} 18. Qe3
{[%clk 0:01:50.5]} 18... Nb6 {[%clk 0:00:53.5]} 19. Bh4 {[%clk 0:01:39.1]} 19...
Nd5 {[%clk 0:00:49.8]} 20. Qe2 {[%clk 0:01:28.1]} 20... Qd6 {[%clk 0:00:46.8]}
21. Ne5 {[%clk 0:01:25.1]} 21... Bg4 {[%clk 0:00:26.4]} 22. Nxg4 {[%clk
0:01:17]} 22... Qxf4+ {[%clk 0:00:26.2]} 23. Kb1 {[%clk 0:01:13.7]} 23... Qxg4
{[%clk 0:00:26.3]} 24. Qe1 {[%clk 0:01:11.6]} 24... O-O {[%clk 0:00:26]} 25. Bg3
{[%clk 0:00:41.8]} 25... a5 {[%clk 0:00:24.1]} 26. c4 {[%clk 0:00:35.8]} 26...
bxc4 {[%clk 0:00:24]} 27. Bxc4 {[%clk 0:00:34.8]} 27... a4 {[%clk 0:00:23.7]}
28. a3 {[%clk 0:00:33.3]} 28... Ra7 {[%clk 0:00:21.9]} 29. Bd6 {[%clk 0:00:29]}
29... Rff7 {[%clk 0:00:18.1]} 30. Rd3 {[%clk 0:00:28.9]} 30... Qf5 {[%clk
0:00:16.2]} 31. Ka2 {[%clk 0:00:27.6]} 31... Rad7 {[%clk 0:00:15.3]} 32. Rf3
{[%clk 0:00:24.7]} 32... Qc2 {[%clk 0:00:13.5]} 33. Bd3 {[%clk 0:00:15.8]} 33...
Qb3+ {[%clk 0:00:12.8]} 34. Ka1 {[%clk 0:00:16.3]} 34... Rb7 {[%clk 0:00:12.1]}
35. Bxh7+ {[%clk 0:00:15.1]} 35... Kxh7 {[%clk 0:00:11.5]} 36. Rxb3 {[%clk
0:00:15.5]} 36... axb3 {[%clk 0:00:11.2]} 37. Qe4+ {[%clk 0:00:14.2]} 37... Kh8
{[%clk 0:00:10.6]} 38. Qb1 {[%clk 0:00:10.5]} 38... Rf2 {[%clk 0:00:09.8]} 39.
Bg3 {[%clk 0:00:08.3]} 39... Rxg2 {[%clk 0:00:09.6]} 40. Qh1 {[%clk 0:00:07]}
40... Rxg3 {[%clk 0:00:09.1]} 41. Qxh5+ {[%clk 0:00:07]} 41... Kg8 {[%clk
0:00:09.7]} 42. Qe8+ {[%clk 0:00:06.6]} 42... Bf8 {[%clk 0:00:10]} 43. Qxe6+
{[%clk 0:00:06.5]} 43... Rf7 {[%clk 0:00:10.6]} 44. Qe1 {[%clk 0:00:06.1]} 44...
Rfg7 {[%clk 0:00:10.6]} 45. Qe6+ {[%clk 0:00:03.8]} 45... Rf7 {[%clk 0:00:11]}
46. Qe1 {[%clk 0:00:03.5]} 46... Rg6 {[%clk 0:00:11.6]} 47. Qd1 {[%clk
0:00:02.1]} 47... Rb7 {[%clk 0:00:08.5]} 0-1

[Event "Late-Titled-Tuesday-Blitz-April-16-2024"]
[Site "Chess.com"]
[Date "2024.04.16"]
[Round "11"]
[White "diokletian"]
[Black "BardArtem"]
[Result "0-1"]
[WhiteElo "2678"]
[BlackElo "2829"]
[TimeControl "180+1"]
[EndTime "16:06:09 PDT"]
[Termination "BardArtem won by checkmate"]

1. d4 {[%clk 0:02:57.3]} 1... d5 {[%clk 0:02:59.9]} 2. c4 {[%clk 0:02:57.3]}
2... e6 {[%clk 0:02:59.7]} 3. Nf3 {[%clk 0:02:57.3]} 3... h6 {[%clk 0:02:56.2]}
4. Qc2 {[%clk 0:02:47.9]} 4... Nf6 {[%clk 0:02:56]} 5. g3 {[%clk 0:02:46.4]}
5... Bd6 {[%clk 0:02:53.8]} 6. Bg2 {[%clk 0:02:46]} 6... O-O {[%clk 0:02:54.5]}
7. O-O {[%clk 0:02:46.2]} 7... Nc6 {[%clk 0:02:55.2]} 8. a3 {[%clk 0:02:45]}
8... Re8 {[%clk 0:02:54.7]} 9. b4 {[%clk 0:02:43.9]} 9... dxc4 {[%clk
0:02:53.7]} 10. Qxc4 {[%clk 0:02:43.3]} 10... e5 {[%clk 0:02:54.3]} 11. Rd1
{[%clk 0:02:27.3]} 11... e4 {[%clk 0:02:47.3]} 12. Ne1 {[%clk 0:02:24.2]} 12...
a6 {[%clk 0:02:42]} 13. Qc2 {[%clk 0:02:11.7]} 13... Bf5 {[%clk 0:02:37.1]} 14.
Nc3 {[%clk 0:02:10.3]} 14... Qd7 {[%clk 0:02:36.9]} 15. Be3 {[%clk 0:01:55.9]}
15... h5 {[%clk 0:02:28.9]} 16. Qd2 {[%clk 0:01:44.1]} 16... h4 {[%clk
0:02:25.4]} 17. Nc2 {[%clk 0:01:43]} 17... Bh3 {[%clk 0:02:09.4]} 18. Bg5 {[%clk
0:01:33.3]} 18... Bxg2 {[%clk 0:02:06.7]} 19. Kxg2 {[%clk 0:01:33.1]} 19... h3+
{[%clk 0:02:05.6]} 20. Kg1 {[%clk 0:01:32.9]} 20... Qf5 {[%clk 0:02:00.9]} 21.
Bxf6 {[%clk 0:01:31.4]} 21... Qxf6 {[%clk 0:02:01.8]} 22. Ne3 {[%clk 0:01:25.2]}
22... Rad8 {[%clk 0:01:55.1]} 23. b5 {[%clk 0:01:19.2]} 23... Nxd4 {[%clk
0:01:30.8]} 24. Qxd4 {[%clk 0:01:17.5]} 24... Be5 {[%clk 0:01:30.8]} 25. Nxe4
{[%clk 0:00:54.1]} 25... Bxd4 {[%clk 0:01:29.7]} 26. Nxf6+ {[%clk 0:00:53.9]}
26... Bxf6 {[%clk 0:01:19.9]} 27. Rxd8 {[%clk 0:00:45.2]} 27... Rxd8 {[%clk
0:01:20.8]} 28. Rc1 {[%clk 0:00:42.8]} 28... axb5 {[%clk 0:01:11.2]} 29. Rxc7
{[%clk 0:00:42.5]} 29... Rd2 {[%clk 0:00:47.3]} 30. Rxb7 {[%clk 0:00:33]} 30...
Rb2 {[%clk 0:00:47.6]} 31. Nf1 {[%clk 0:00:19.1]} 31... Bd4 {[%clk 0:00:46.2]}
32. e3 {[%clk 0:00:18.3]} 32... Bc5 {[%clk 0:00:46.3]} 33. a4 {[%clk 0:00:15]}
33... b4 {[%clk 0:00:43.5]} 34. a5 {[%clk 0:00:15.3]} 34... Ra2 {[%clk
0:00:39.8]} 35. Rb5 {[%clk 0:00:14.3]} 35... Bf8 {[%clk 0:00:32.9]} 36. g4
{[%clk 0:00:10.5]} 36... g6 {[%clk 0:00:30.3]} 37. e4 {[%clk 0:00:09.1]} 37...
Kg7 {[%clk 0:00:23.8]} 38. g5 {[%clk 0:00:07.8]} 38... Bd6 {[%clk 0:00:12.6]}
39. Ne3 {[%clk 0:00:05.4]} 39... Ra1+ {[%clk 0:00:12.4]} 40. Nf1 {[%clk
0:00:05.6]} 40... Kf8 {[%clk 0:00:09]} 41. f3 {[%clk 0:00:04.3]} 41... Bf4
{[%clk 0:00:04.2]} 42. Rxb4 {[%clk 0:00:03.4]} 42... Be3+ {[%clk 0:00:03.7]} 43.
Kh1 {[%clk 0:00:03.8]} 43... Rxf1# {[%clk 0:00:04.3]} 0-1

[Event "Late-Titled-Tuesday-Blitz-April-16-2024"]
[Site "Chess.com"]
[Date "2024.04.16"]
[Round "11"]
[White "Gabrielian_Artur"]
[Black "ural58"]
[Result "1/2-1/2"]
[WhiteElo "2800"]
[BlackElo "2554"]
[TimeControl "180+1"]
[EndTime "16:06:14 PDT"]
[Termination "Game drawn - insufficient material"]

1. e4 {[%clk 0:03:00.9]} 1... e5 {[%clk 0:02:59.1]} 2. Nf3 {[%clk 0:03:00.4]}
2... Nc6 {[%clk 0:02:59.1]} 3. Bc4 {[%clk 0:03:00.2]} 3... Nf6 {[%clk 0:02:59]}
4. d3 {[%clk 0:03:00.5]} 4... h6 {[%clk 0:02:58.9]} 5. O-O {[%clk 0:02:59.9]}
5... d6 {[%clk 0:02:52.8]} 6. c3 {[%clk 0:02:59.4]} 6... g5 {[%clk 0:02:50.2]}
7. d4 {[%clk 0:02:49.1]} 7... exd4 {[%clk 0:02:47.5]} 8. cxd4 {[%clk 0:02:39.8]}
8... Bg7 {[%clk 0:02:04.1]} 9. Nc3 {[%clk 0:02:30.5]} 9... O-O {[%clk
0:02:02.5]} 10. h4 {[%clk 0:02:24.2]} 10... g4 {[%clk 0:02:01.8]} 11. Nh2 {[%clk
0:02:23]} 11... Re8 {[%clk 0:01:31.5]} 12. Re1 {[%clk 0:02:22.1]} 12... Ne7
{[%clk 0:01:23.8]} 13. Qb3 {[%clk 0:01:50.4]} 13... d5 {[%clk 0:01:23.5]} 14.
exd5 {[%clk 0:01:46.8]} 14... Nf5 {[%clk 0:01:15.3]} 15. Rxe8+ {[%clk
0:01:29.7]} 15... Qxe8 {[%clk 0:01:15]} 16. Qd1 {[%clk 0:01:29.7]} 16... g3
{[%clk 0:01:12.8]} 17. fxg3 {[%clk 0:01:22.4]} 17... Ne4 {[%clk 0:01:12.3]} 18.
Nxe4 {[%clk 0:01:11]} 18... Qxe4 {[%clk 0:00:59]} 19. Nf3 {[%clk 0:01:11]} 19...
Nxd4 {[%clk 0:00:54.1]} 20. Bd3 {[%clk 0:01:08.3]} 20... Qxd5 {[%clk 0:00:43]}
21. Bf4 {[%clk 0:00:47.8]} 21... Bg4 {[%clk 0:00:40.8]} 22. Rc1 {[%clk
0:00:23.3]} 22... c6 {[%clk 0:00:34.1]} 23. Bc4 {[%clk 0:00:20.7]} 23... Nxf3+
{[%clk 0:00:32.2]} 24. gxf3 {[%clk 0:00:20]} 24... Qxf3 {[%clk 0:00:32.4]} 25.
Qxf3 {[%clk 0:00:19.3]} 25... Bxf3 {[%clk 0:00:32.5]} 26. Re1 {[%clk 0:00:17.8]}
26... Bxb2 {[%clk 0:00:19.4]} 27. Re7 {[%clk 0:00:17]} 27... Bd5 {[%clk
0:00:17.5]} 28. Bxd5 {[%clk 0:00:16.1]} 28... cxd5 {[%clk 0:00:17.6]} 29. Rxb7
{[%clk 0:00:16.7]} 29... Bd4+ {[%clk 0:00:16.4]} 30. Kf1 {[%clk 0:00:15.8]}
30... Bb6 {[%clk 0:00:17]} 31. Rd7 {[%clk 0:00:15.3]} 31... Rd8 {[%clk
0:00:14.2]} 32. Rb7 {[%clk 0:00:13.9]} 32... h5 {[%clk 0:00:13.1]} 33. Ke2
{[%clk 0:00:13.8]} 33... d4 {[%clk 0:00:12.8]} 34. Kd3 {[%clk 0:00:14.3]} 34...
Kg7 {[%clk 0:00:12.7]} 35. a4 {[%clk 0:00:13.4]} 35... Kg6 {[%clk 0:00:11.6]}
36. a5 {[%clk 0:00:13.7]} 36... Bxa5 {[%clk 0:00:11.1]} 37. Rxa7 {[%clk
0:00:14.1]} 37... Bc3 {[%clk 0:00:10.8]} 38. Ra6+ {[%clk 0:00:11]} 38... f6
{[%clk 0:00:10.8]} 39. Bg5 {[%clk 0:00:10.5]} 39... Rf8 {[%clk 0:00:09.8]} 40.
Bf4 {[%clk 0:00:10.9]} 40... Kf5 {[%clk 0:00:09.7]} 41. Ra5+ {[%clk 0:00:09.4]}
41... Kg4 {[%clk 0:00:09.8]} 42. Ra7 {[%clk 0:00:10]} 42... Rg8 {[%clk
0:00:09.6]} 43. Rf7 {[%clk 0:00:09.9]} 43... f5 {[%clk 0:00:09.6]} 44. Be5
{[%clk 0:00:10]} 44... Be1 {[%clk 0:00:09]} 45. Kxd4 {[%clk 0:00:08.6]} 45...
Bxg3 {[%clk 0:00:08.3]} 46. Bxg3 {[%clk 0:00:08.8]} 46... Kxg3 {[%clk
0:00:07.9]} 47. Rxf5 {[%clk 0:00:09.4]} 47... Kxh4 {[%clk 0:00:08]} 48. Ke3
{[%clk 0:00:09.8]} 48... Rg3+ {[%clk 0:00:06.4]} 49. Kf2 {[%clk 0:00:09.8]}
49... Rg5 {[%clk 0:00:06.2]} 50. Rxg5 {[%clk 0:00:09.8]} 50... Kxg5 {[%clk
0:00:05.7]} 51. Kg3 {[%clk 0:00:10.4]} 51... h4+ {[%clk 0:00:06.6]} 52. Kh3
{[%clk 0:00:10.9]} 52... Kf6 {[%clk 0:00:07.4]} 53. Kh2 {[%clk 0:00:11.5]} 53...
h3 {[%clk 0:00:06.8]} 54. Kxh3 {[%clk 0:00:12.4]} 1/2-1/2